[Event "Kezmarok Chess Open 2022"]
[Site "Kezmarok"]
[Date "2022.09.28"]
[Round "6.9"]
[White "Striskova, Lucia"]
[Black "Fizerova, Lucie"]
[Result "1-0"]
[ECO "C42"]
[WhiteElo "1866"]
[BlackElo "1779"]
[Annotator "NA RC COMBH"]
[PlyCount "55"]
[EventDate "2022.09.24"]
[EventType "swiss"]
[EventCountry "SVK"]
[SourceTitle "playchess.com"]
[Source "ChessBase"]
[SourceQuality "1"]
[TimeControl "40/5400+30:1800+30"]

1. e4 {[%emt 0:00:12]} e5 {[%emt 0:00:10]} 2. Nf3 {[%emt 0:00:11]} Nf6 {[%emt 0:00:07]} 3. Nxe5 {[%emt 0:00:34]} d6 {[%emt 0:00:07]} 4. Nf3 {[%emt 0:00:21]} Nxe4 {[%emt 0:00:06]} 5. Nc3 {[%emt 0:00:59]} Nxc3 {[%emt 0:00:14]} 6. dxc3 {[%emt 0:00:15]} Be7 {[%emt 0:00:44]} 7. Be3 {[%emt 0:00:17]} Be6 {[%emt 0:00:42]} 8. Qd2 {[%emt 0:01:56]} Nc6 {[%emt 0:00:53]} 9. O-O-O {[%emt 0:00:26]} O-O {[%emt 0:00:26]} 10. Bd3 {[%emt 0:01:52]} a6 {[%emt 0:02:14]} 11. h4 {[%emt 0:02:08]} Rb8 {[%emt 0:01:57]} 12. Ng5 {[%emt 0:02:30]} Bxg5 {[%emt 0:05:40]} 13. hxg5 {[%emt 0:01:01]} g6 {[%emt 0:00:43]} 14. Qe1 {[%emt 0:04:44]} Qd7 {[%emt 0:04:33]} 15. f3 {[%emt 0:04:00]} f5 {[%emt 0:09:27]} 16. gxf6 {[%emt 0:02:07]} Ne5 {[%emt 0:00:35]} 17. Bd4 {[%emt 0:06:34]} Nxd3+ {[%emt 0:00:47]} 18. Rxd3 {[%emt 0:00:08]} c5 {[%emt 0:02:45]} 19. Bxc5 {[%emt 0:01:57]} Bf5 {[%emt 0:04:06]} 20. Rxd6 {[%emt 0:05:49]} Qa4 {[%emt 0:00:16]} 21. Qf2 {[%emt 0:05:06]} Qxa2 {[%emt 0:02:08]} 22. Qh4 {[%emt 0:03:10]} Rf7 {[%emt 0:00:58]} 23. Ba3 {[%emt 0:01:09]} b5 {[%emt 0:03:34]} 24. Rhd1 {[%emt 0:02:23]} Qa1+ {[%emt 0:01:29]} 25. Kd2 {[%emt 0:00:15]} Qa2 {[%emt 0:00:11]} 26. Qd4 {[%emt 0:07:07]} h6 {[%emt 0:01:56]} 27. g4 {[%emt 0:01:51]} Be6 {[%emt 0:02:41]} 28. Rh1 {[%emt 0:01:39]} 1-0

[Event "Kezmarok Chess Open 2022"]
[Site "Kezmarok"]
[Date "2022.09.28"]
[Round "6.10"]
[White "Velychko, Semen"]
[Black "Rak, Martin"]
[Result "1/2-1/2"]
[ECO "A45"]
[WhiteElo "1604"]
[BlackElo "1805"]
[Annotator "NA RC COMBH"]
[PlyCount "110"]
[EventDate "2022.09.24"]
[EventType "swiss"]
[EventCountry "SVK"]
[SourceTitle "playchess.com"]
[Source "ChessBase"]
[SourceQuality "1"]
[TimeControl "40/5400+30:1800+30"]

1. d4 {[%emt 0:00:23]} Nf6 {[%emt 0:00:09]} 2. Nc3 {[%emt 0:00:32]} d5 {[%emt 0:00:11]} 3. Bf4 {[%emt 0:00:18]} e6 {[%emt 0:00:19]} 4. e3 {[%emt 0:00:46]} Bd6 {[%emt 0:00:26]} 5. Nge2 {[%emt 0:01:17]} O-O {[%emt 0:05:26]} 6. g3 {[%emt 0:07:49]} b6 {[%emt 0:04:24]} 7. Bg2 {[%emt 0:01:37]} Bb7 {[%emt 0:00:45]} 8. O-O {[%emt 0:03:30]} c5 {[%emt 0:03:56]} 9. Qd2 {[%emt 0:02:07]} Nc6 {[%emt 0:06:55]} 10. Rad1 {[%emt 0:09:07]} Rc8 {[%emt 0:08:28]} 11. dxc5 {[%emt 0:07:44]} Bxc5 {[%emt 0:04:35]} 12. Nd4 {[%emt 0:03:26]} Nxd4 {[%emt 0:01:31]} 13. exd4 {[%emt 0:00:59]} Bb4 {[%emt 0:00:51]} 14. Bg5 {[%emt 0:09:38]} h6 {[%emt 0:02:00]} 15. Bxf6 {[%emt 0:03:07]} Qxf6 {[%emt 0:00:01]} 16. Nxd5 {[%emt 0:00:29]} Bxd5 {[%emt 0:00:31]} 17. Qxb4 {[%emt 0:00:30]} Bxg2 {[%emt 0:06:15]} 18. Kxg2 {[%emt 0:00:15]} Rxc2 {[%emt 0:00:52]} 19. Rc1 {[%emt 0:12:22]} Rfc8 {[%emt 0:06:07]} 20. Rxc2 {[%emt 0:01:42]} Rxc2 {[%emt 0:02:02]} 21. a4 {[%emt 0:08:23]} Qf5 {[%emt 0:07:42]} 22. Qb5 {[%emt 0:07:29]} Qxb5 {[%emt 0:05:50]} 23. axb5 {[%emt 0:00:11]} Rxb2 {[%emt 0:00:18]} 24. Ra1 {[%emt 0:00:12]} Rxb5 {[%emt 0:00:20]} 25. Rxa7 {[%emt 0:00:07]} g5 {[%emt 0:12:52]} 26. Rb7 {[%emt 0:02:11]} Kg7 {[%emt 0:02:37]} 27. g4 {[%emt 0:02:15]} Rb3 {[%emt 0:01:54]} 28. h3 {[%emt 0:02:25]} Kf6 {[%emt 0:03:20]} 29. Kh2 {[%emt 0:01:19]} Kg7 {[%emt 0:02:10]} 30. Kg2 {[%emt 0:00:26]} Kg6 {[%emt 0:00:04]} 31. Kh2 {[%emt 0:00:58]} Rf3 $17 {[%emt 0:01:05]} ({Black should play} 31... b5 $19 32. Rb6 Kg7) 32. Kg2 {[%emt 0:00:28]} Rb3 {[%emt 0:00:22]} (32... Rd3 $17 33. Rxb6 Rxd4) 33. Kh2 $1 {[%emt 0:00:10]} Rb4 {[%emt 0:00:01]} 34. Kg2 {[%emt 0:00:30]} Rxd4 {[%emt 0:00:22]} 35. Rxb6 {[%emt 0:00:14]} h5 {[%emt 0:00:57]} 36. Kg3 {[%emt 0:02:40]} Rf4 {[%emt 0:01:44]} 37. Ra6 {[%emt 0:00:59]} Rb4 {[%emt 0:01:56]} 38. Rc6 {[%emt 0:00:39]} hxg4 {[%emt 0:00:38]} 39. hxg4 {[%emt 0:00:12]} Kf6 {[%emt 0:00:07]} 40. Ra6 {[%emt 0:00:44]} Rb5 {[%emt 0:00:59]} 41. Ra7 {[%emt 0:30:49]} Rb6 {[%emt 0:30:40]} 42. Kf3 {[%emt 0:01:12]} e5 {[%emt 0:00:18]} 43. Ra5 {[%emt 0:02:29]} Ke6 {[%emt 0:01:06]} 44. Ke4 {[%emt 0:02:02]} Rb4+ {[%emt 0:00:25]} 45. Kf3 {[%emt 0:00:14]} Rd4 {[%emt 0:00:40]} 46. Ra6+ {[%emt 0:00:46]} Rd6 {[%emt 0:00:51]} 47. Ra5 {[%emt 0:00:11]} f5 {[%emt 0:00:11]} 48. gxf5+ {[%emt 0:00:14]} Kxf5 {[%emt 0:00:00]} 49. Kg3 {[%emt 0:00:26]} Rd3+ {[%emt 0:00:16]} 50. Kg2 {[%emt 0:00:40]} Rd6 {[%emt 0:01:12]} 51. Kg3 {[%emt 0:03:00]} Rd3+ {[%emt 0:03:59]} 52. Kg2 {[%emt 0:00:09]} Kf4 {[%emt 0:00:35]} 53. Ra8 {[%emt 0:01:06]} Rd6 {[%emt 0:01:51]} 54. Rf8+ {[%emt 0:00:40]} Ke4 {[%emt 0:00:06]} 55. f3+ {[%emt 0:01:12]} Kd4 {[%emt 0:00:30]} 1/2-1/2

[Event "Kezmarok Chess Open 2022"]
[Site "Kezmarok"]
[Date "2022.09.28"]
[Round "6.11"]
[White "Sekova, Olivia"]
[Black "Juracak, David"]
[Result "1/2-1/2"]
[ECO "C42"]
[WhiteElo "1797"]
[BlackElo "1708"]
[Annotator "NA RC COMBH"]
[PlyCount "56"]
[EventDate "2022.09.24"]
[EventType "swiss"]
[EventCountry "SVK"]
[SourceTitle "playchess.com"]
[Source "ChessBase"]
[SourceQuality "1"]
[TimeControl "40/5400+30:1800+30"]

1. e4 {[%emt 0:00:10]} e5 {[%emt 0:00:17]} 2. Nf3 {[%emt 0:00:12]} Nf6 {[%emt 0:00:05]} 3. Nxe5 {[%emt 0:00:29]} d6 {[%emt 0:00:06]} 4. Nf3 {[%emt 0:00:09]} Nxe4 {[%emt 0:00:16]} 5. Nc3 {[%emt 0:00:53]} Nxc3 {[%emt 0:00:07]} 6. dxc3 {[%emt 0:00:06]} Be7 {[%emt 0:00:11]} 7. Be3 {[%emt 0:01:52]} Nc6 {[%emt 0:01:44]} 8. Qd5 {[%emt 0:02:30]} Be6 {[%emt 0:02:53]} 9. Qb5 {[%emt 0:00:54]} Bd7 {[%emt 0:23:01]} 10. O-O-O {[%emt 0:31:03]} Ne5 {[%emt 0:03:29]} 11. Qxb7 {[%emt 0:04:36]} Rb8 {[%emt 0:05:30]} 12. Qa6 {[%emt 0:03:11]} Nxf3 {[%emt 0:04:45]} 13. gxf3 {[%emt 0:00:08]} Bg5 {[%emt 0:01:59]} 14. Bd3 {[%emt 0:01:58]} Bxe3+ {[%emt 0:05:36]} 15. fxe3 {[%emt 0:00:10]} O-O {[%emt 0:01:46]} 16. Rhg1 {[%emt 0:02:31]} Re8 {[%emt 0:01:18]} 17. Qxa7 {[%emt 0:06:15]} Rb6 {[%emt 0:00:28]} 18. Qa5 {[%emt 0:03:57]} Re5 {[%emt 0:00:58]} 19. Qa3 {[%emt 0:03:11]} Rxe3 {[%emt 0:01:35]} 20. c4 {[%emt 0:01:33]} Re5 {[%emt 0:01:30]} 21. Rde1 {[%emt 0:10:43]} Rxe1+ {[%emt 0:02:36]} 22. Rxe1 {[%emt 0:00:05]} g6 {[%emt 0:00:23]} 23. Qc3 {[%emt 0:02:41]} Qh4 {[%emt 0:01:38]} 24. b3 {[%emt 0:10:47]} Be6 {[%emt 0:01:38]} 25. Re4 Qxh2 26. Qf6 Qg1+ 27. Kb2 Qc5 28. Bf1 Rb8 1/2-1/2

[Event "Kezmarok Chess Open 2022"]
[Site "Kezmarok"]
[Date "2022.09.28"]
[Round "6.12"]
[White "Smetana, Peter"]
[Black "Vestur, Rastislav"]
[Result "1/2-1/2"]
[ECO "B41"]
[WhiteElo "1715"]
[BlackElo "1789"]
[Annotator "NA RC COMBH"]
[PlyCount "43"]
[EventDate "2022.09.24"]
[EventType "swiss"]
[EventCountry "SVK"]
[SourceTitle "playchess.com"]
[Source "ChessBase"]
[SourceQuality "1"]
[TimeControl "40/5400+30:1800+30"]

1. e4 c5 2. Nf3 e6 3. d4 cxd4 4. Nxd4 a6 5. Qf3 b5 6. e5 Qc7 7. Bf4 Bb7 8. Qg3 Ne7 9. Bd3 Ng6 10. O-O Bc5 11. Nb3 Ba7 12. N1d2 Nc6 13. Rfe1 Nb4 14. a3 Nxd3 15. cxd3 Nxf4 16. Qxf4 Qc2 17. Qg3 Bd5 18. Rec1 Qxb2 19. Rcb1 Qc3 20. Rc1 Qb2 21. Rcb1 Qc3 22. Rc1 1/2-1/2

[Event "Kezmarok Chess Open 2022"]
[Site "Kezmarok"]
[Date "2022.09.28"]
[Round "6.13"]
[White "Skapikova, Lubica"]
[Black "Rakovsky, Jakub"]
[Result "1/2-1/2"]
[ECO "C78"]
[WhiteElo "1823"]
[BlackElo "2012"]
[Annotator "TA"]
[PlyCount "37"]
[EventDate "2022.09.24"]
[EventType "swiss"]
[EventCountry "SVK"]
[SourceTitle "playchess.com"]
[Source "ChessBase"]
[SourceQuality "1"]
[TimeControl "40/5400+30:1800+30"]

{[%evp 13,22,17,4,5,44,6,27,9,25,0,1]} 1. e4 {[%emt 0:00:59]} e5 {[%emt 0:00:09]} 2. Nf3 {[%emt 0:00:05]} Nc6 {[%emt 0:00:06]} 3. Bb5 {[%emt 0:00:03][%cal Bf1b5,Bb5a4,Ba4b3][%mdl 32]} a6 {[%emt 0:00:58]} 4. Ba4 {[%emt 0:00:05]} Nf6 {[%emt 0:00:06]} 5. O-O {[%emt 0:00:04]} b5 {[%emt 0:00:16]} 6. Bb3 {[%emt 0:00:03]} Bc5 {[%emt 0:00:55]} 7. d3 {[%emt 0:00:06]} d6 {[%emt 0:00:52]} 8. c3 {[%emt 0:03:35] C78: Ruy Lopez: Archangelsk and Möller Defences.} Bb6 {[%emt 0:01:14] 8...h6 is setting a new trend.} 9. h3 (9. a4 $5 {[%cal Ra4b5]}) 9... O-O {[%emt 0:03:14]} 10. Re1 {[%emt 0:02:28]} Na5 {[%emt 0:01:34]} 11. Bc2 {[%emt 0:00:16]} c5 {[%emt 0:01:47] [#] An uneventful encounter.  Weighted Error Value: White=0.13 (very precise) /Black=0.14 (very precise)} {Predecessor:} 12. Nbd2 $146 Re8 13. Nf1 Nc6 14. Bg5 Ne7 15. Ne3 Be6 16. Kh2 Ng6 17. Nf5 h6 18. Bxf6 Qxf6 19. Nxd6 {½-½ (46) Abdul,M (1952)-Mollah,I (1896) Dhaka 2021} 1/2-1/2

[Event "Kezmarok Chess Open 2022"]
[Site "Kezmarok"]
[Date "2022.09.28"]
[Round "6.14"]
[White "Kapolkova, Greta"]
[Black "Ropovik, Samuel"]
[Result "0-1"]
[ECO "B40"]
[WhiteElo "1723"]
[BlackElo "1497"]
[Annotator "NA RC COMBH"]
[PlyCount "84"]
[EventDate "2022.09.24"]
[EventType "swiss"]
[EventCountry "SVK"]
[SourceTitle "playchess.com"]
[Source "ChessBase"]
[SourceQuality "1"]
[TimeControl "40/5400+30:1800+30"]

1. e4 {[%emt 0:00:02]} c5 {[%emt 0:00:15]} 2. Nf3 {[%emt 0:00:08]} e6 {[%emt 0:00:02]} 3. d4 {[%emt 0:00:28]} cxd4 {[%emt 0:00:02]} 4. Nxd4 {[%emt 0:00:09]} Nf6 {[%emt 0:00:16]} 5. f3 {[%emt 0:09:02]} Nc6 {[%emt 0:05:37]} 6. c3 {[%emt 0:12:58]} a6 {[%emt 0:10:26]} 7. Nxc6 {[%emt 0:08:17]} bxc6 {[%emt 0:00:43]} 8. e5 {[%emt 0:00:16]} Nd5 {[%emt 0:00:21]} 9. c4 {[%emt 0:13:17]} Bb4+ {[%emt 0:07:52]} 10. Bd2 {[%emt 0:00:39]} Ne3 {[%emt 0:01:20]} 11. Qc1 {[%emt 0:02:29]} Bxd2+ {[%emt 0:02:46]} 12. Qxd2 {[%emt 0:05:38]} Nxc4 {[%emt 0:04:56]} 13. Bxc4 {[%emt 0:05:20]} Qh4+ {[%emt 0:00:04]} 14. g3 {[%emt 0:00:14]} Qxc4 {[%emt 0:00:11]} 15. Nc3 {[%emt 0:01:44]} O-O {[%emt 0:05:10]} 16. Ne4 {[%emt 0:18:33]} Rb8 {[%emt 0:04:59]} 17. Qf4 {[%emt 0:12:53]} Qb4+ {[%emt 0:06:19]} 18. Kf1 {[%emt 0:00:06]} Qxb2 {[%emt 0:07:34]} 19. Re1 {[%emt 0:02:34]} a5 {[%emt 0:02:02]} 20. h4 {[%emt 0:04:36]} Ba6+ {[%emt 0:04:06]} 21. Kg1 {[%emt 0:00:03]} Qxa2 {[%emt 0:03:58]} 22. Nf6+ {[%emt 0:00:27]} Kh8 {[%emt 0:05:40]} 23. Rh2 {[%emt 0:01:11]} Rb2 {[%emt 0:00:26]} 24. Rxb2 {[%emt 0:00:02]} Qxb2 {[%emt 0:00:09]} 25. h5 {[%emt 0:01:16]} Qb6+ {[%emt 0:00:43]} 26. Kg2 {[%emt 0:00:14]} Qb4 {[%emt 0:03:02]} 27. Re4 {[%emt 0:00:10]} Qe7 {[%emt 0:00:50]} 28. h6 {[%emt 0:01:11]} gxf6 {[%emt 0:01:27]} 29. exf6 {[%emt 0:00:04]} Qc5 {[%emt 0:03:01]} 30. Qd2 {[%emt 0:00:29]} Qd5 {[%emt 0:02:00]} 31. Rd4 {[%emt 0:00:28]} Qb5 {[%emt 0:00:25]} 32. Re4 {[%emt 0:00:43]} Qd5 {[%emt 0:01:06]} 33. Rd4 {[%emt 0:00:05]} Qe5 {[%emt 0:00:42]} 34. Re4 {[%emt 0:00:59]} Qxf6 {[%emt 0:00:30]} 35. Qxa5 {[%emt 0:00:43]} Qb2+ {[%emt 0:00:24]} 36. Kh3 {[%emt 0:00:28]} Qb5 {[%emt 0:00:17]} 37. Qa1+ {[%emt 0:00:08]} f6 {[%emt 0:00:21]} 38. Kg2 {[%emt 0:00:32]} Qf1+ {[%emt 0:01:18]} 39. Qxf1 {[%emt 0:00:33]} Bxf1+ {[%emt 0:00:05]} 40. Kxf1 {[%emt 0:00:03]} Rg8 {[%emt 0:00:06]} 41. Kf2 {[%emt 0:07:47]} Rg6 {[%emt 0:00:00]} 42. Rd4 {[%emt 0:00:25]} d5 {[%emt 0:00:03]} 0-1

[Event "Kezmarok Chess Open 2022"]
[Site "Kezmarok"]
[Date "2022.09.28"]
[Round "6.15"]
[White "Horbalova, Ivana"]
[Black "Fizer, Marek"]
[Result "0-1"]
[ECO "A04"]
[WhiteElo "1286"]
[BlackElo "1963"]
[Annotator "TA"]
[PlyCount "68"]
[EventDate "2022.09.24"]
[EventType "swiss"]
[EventCountry "SVK"]
[SourceTitle "playchess.com"]
[Source "ChessBase"]
[SourceQuality "1"]
[TimeControl "40/5400+30:1800+30"]

{[%evp 11,67,-15,-3,-10,-12,-39,-38,-38,-19,-22,-21,-48,-64,-93,-97,-121,-113,-264,-260,-272,-172,-197,-192,-202,-177,-187,-191,-197,-204,-201,-217,-232,-227,-233,-188,-187,-193,-179,-184,-173,-170,-581,-577,-572,-568,-533,-546,-854,-808,-1259,-1258,-29994,-29995,-29995,-29996,-29998,-29999,-29999]} 1. Nf3 {[%emt 0:00:20]} c5 {[%emt 0:00:04]} 2. g3 {[%emt 0:00:55]} Nc6 {[%emt 0:00:04]} 3. Bg2 {[%emt 0:01:45]} g6 {[%emt 0:00:07]} 4. O-O {[%emt 0:02:10]} Bg7 {[%emt 0:00:02]} 5. d3 {[%emt 0:01:12]} e5 {[%emt 0:00:20]} 6. e4 {[%emt 0:01:43]} d6 {[%emt 0:03:01]} 7. c4 {[%emt 0:04:04] A04: Unusual lines after 1 Nf3 and King's Indian Attack.} Nge7 {[%emt 0:00:10]} 8. Na3 {[%emt 0:01:51]} O-O {[%emt 0:02:40]} 9. Nc2 {[%emt 0:01:35] Black is slightly better.} h6 {[%emt 0:03:24] [#]} 10. Rb1 $146 {[%emt 0:01:36]} ({Predecessor:} 10. Bd2 f5 11. Bh3 fxe4 12. Bxc8 Qxc8 13. dxe4 Qg4 14. Nfe1 Qxe4 15. b3 Qf5 16. Ne3 {0-1 (25) Santos Filho,T (2109)-Von Buelow,G (2384) Rio de Janeiro 2009}) 10... a5 {[%emt 0:00:25]} 11. a4 {[%emt 0:02:51]} f5 {[%emt 0:05:03][%cal Bf7f5,Bf5f4][%mdl 32]} 12. b3 {[%emt 0:08:42] [#]} f4 $1 {[%emt 0:10:08]} 13. Bb2 {[%emt 0:02:56]} g5 {[%emt 0:00:54][%cal Bg6g5,Bg5g4][%mdl 32]} 14. h4 $2 {[%emt 0:03:17] [#]} (14. h3 $17) 14... g4 $1 $19 {[%emt 0:01:38]} 15. Nh2 {[%emt 0:00:51]} f3 {[%emt 0:01:03]} 16. Nxf3 {[%emt 0:02:31]} gxf3 {[%emt 0:00:08]} 17. Bxf3 {[%emt 0:00:14]} Be6 {[%emt 0:03:55]} 18. Bg4 {[%emt 0:02:54]} Qd7 {[%emt 0:00:38]} 19. Bxe6+ {[%emt 0:00:15]} Qxe6 {[%emt 0:00:02]} 20. Kh2 {[%emt 0:02:14]} Rf7 {[%emt 0:00:43]} 21. Qe2 {[%emt 0:03:40]} Raf8 {[%emt 0:01:18][%cal Oh6h5]} 22. f3 {[%emt 0:01:05]} Qg6 {[%emt 0:11:50]} 23. Rf2 {[%emt 0:03:24]} Bf6 {[%emt 0:01:28]} 24. Rg1 {[%emt 0:00:35]} Rg7 {[%emt 0:01:12][%cal Of6h4] aiming for ...Bxh4!} 25. Rfg2 {[%emt 0:00:58]} Qh5 {[%emt 0:01:28][%cal Of6h4] Strongly threatening ...Bxh4!} 26. f4 $2 {[%emt 0:00:59]} (26. Kh1 {is tougher.}) 26... Qxe2 {[%emt 0:00:31]} 27. Rxe2 {[%emt 0:00:18]} exf4 {[%emt 0:00:23]} 28. Bxf6 {[%emt 0:00:28]} Rxf6 {[%emt 0:00:10]} 29. g4 {[%emt 0:01:24]} Ng6 {[%emt 0:00:15]} 30. g5 {[%emt 0:03:38] [#]} Nxh4 $1 {[%emt 0:00:46]} 31. gxf6 {[%emt 0:01:37]} (31. Rf1 hxg5) 31... Nf3+ {[%emt 0:00:06][%mdl 64] Deflection, Double Attack. Black mates.} 32. Kh3 {[%emt 0:01:09]} Nxg1+ {[%emt 0:00:06] Pair of Knights!} 33. Kh2 {[%emt 0:00:52]} Nf3+ {[%emt 0:00:06]} 34. Kh3 {[%emt 0:00:53]} Rg3# {[%emt 0:00:11] White did not feel at home in the position after the opening.  Weighted Error Value: White=0.82/Black=0.09 (flawless)} 0-1

[Event "Kezmarok Chess Open 2022"]
[Site "Kezmarok"]
[Date "2022.09.28"]
[Round "6.16"]
[White "Straka, Simon"]
[Black "Velychko, Sofiya"]
[Result "1-0"]
[ECO "D86"]
[WhiteElo "1732"]
[BlackElo "1371"]
[Annotator "NA RC COMBH"]
[PlyCount "119"]
[EventDate "2022.09.24"]
[EventType "swiss"]
[EventCountry "SVK"]
[SourceTitle "playchess.com"]
[Source "ChessBase"]
[SourceQuality "1"]
[TimeControl "40/5400+30:1800+30"]

1. d4 Nf6 2. c4 g6 3. Nc3 d5 4. cxd5 Nxd5 5. e4 Nxc3 6. bxc3 Bg7 7. Bc4 c5 8. Be3 Nc6 9. Ne2 O-O 10. Rc1 Bd7 11. O-O Rc8 12. Qd2 Qa5 13. Rfd1 cxd4 14. cxd4 Qxd2 15. Rxd2 Na5 16. Bd3 Rxc1+ 17. Nxc1 Nc6 18. Nb3 Rc8 19. Be2 b6 20. Bb5 Nb8 21. Be2 Nc6 22. h3 Nb4 23. Bd1 Bb5 24. Be2 Bxe2 25. Rxe2 Rc2 26. Rxc2 Nxc2 27. Kf1 Nxe3+ 28. fxe3 Kf8 29. Ke2 Ke8 30. Kd3 Kd7 31. Kc4 a6 32. a4 Bh6 33. Kd3 a5 34. e5 Bg7 35. Kc4 Kc7 36. e4 e6 37. Kb5 Kb7 38. Nd2 f6 39. d5 exd5 40. e6 Bf8 41. exd5 f5 42. Nc4 Kc7 43. Nxb6 g5 44. Kxa5 g4 45. hxg4 fxg4 46. Nc4 h5 47. Ne3 Bd6 48. Kb5 g3 49. Nf5 Ba3 50. a5 Kb7 51. e7 Bxe7 52. Nxe7 h4 53. Nf5 h3 54. Nxg3 hxg2 55. Ne2 Kc7 56. a6 Kb8 57. d6 Kc8 58. Kc6 Kb8 59. d7 Ka7 60. d8=Q 1-0

[Event "Kezmarok Chess Open 2022"]
[Site "Kezmarok"]
[Date "2022.09.28"]
[Round "6.18"]
[White "Mazak, Ryan"]
[Black "Hanina, Marcel"]
[Result "1-0"]
[ECO "C24"]
[WhiteElo "1590"]
[BlackElo "1411"]
[Annotator "NA RC COMBH"]
[PlyCount "27"]
[EventDate "2022.09.24"]
[EventType "swiss"]
[EventCountry "SVK"]
[SourceTitle "playchess.com"]
[Source "ChessBase"]
[SourceQuality "1"]
[TimeControl "40/5400+30:1800+30"]

1. e4 e5 2. Bc4 Nf6 3. d4 Nc6 4. d5 Na5 5. Bd3 b6 6. f4 d6 7. Nf3 Bg4 8. b4 Nb7 9. Bb5+ Ke7 10. h3 Bxf3 11. Qxf3 Nd7 12. O-O f6 13. Qg4 a6 14. Qe6# 1-0